bitfinex/quotes_ETHUSD_20241103
["timestamp","ask_amount","ask_price","bid_price","bid_amount"]
[1730655960946,4.16660747,2448.0,2447.8,0.8304]
[1730655962679,0.08154747,2448.0,2447.8,0.8304]
[1730655963740,0.08154747,2448.0,2447.8,4.91561]
[1730655963942,0.11420229,2448.1,2447.9,4.08506]
[1730655964604,0.11420229,2448.1,2447.8,5.407141]
[1730655964755,0.11420229,2448.1,2447.8,9.492361]
[1730655964958,0.19574976,2448.1,2447.8,9.492331]
[1730655965278,0.11420229,2448.1,2448.0,4.85606]
[1730655965578,0.11420229,2448.1,2448.0,5.7993221]
[1730655974019,0.11420229,2448.1,2447.9,1.0]
[1730655974314,0.11420229,2448.0,2447.9,5.08511]
[1730655977382,0.11420229,2448.0,2447.9,1.5]
[1730655977910,1.8999131,2448.0,2447.9,1.5]
[1730655978417,0.19574976,2448.0,2447.9,1.5]
[1730655978712,6.87297964,2448.0,2447.9,1.5]
[1730655978919,10.64127964,2448.0,2447.9,1.5]
[1730655979207,10.9908411,2448.0,2447.9,1.5]
[1730655980611,8.85556883,2448.0,2447.9,1.5]
[1730655980808,10.56874168,2448.0,2447.9,1.5]
[1730655981383,10.56874168,2448.0,2447.9,2.0]
[1730655983585,8.85556883,2448.0,2447.9,2.0]
[1730655984516,10.99703489,2448.0,2447.9,2.0]
[1730655984826,8.85556883,2448.0,2447.9,2.0]
[1730655985029,6.14377489,2448.0,2447.9,2.0]
[1730655985213,5.71547798,2448.0,2447.9,2.0]
[1730655985524,1.90891891,2448.0,2447.9,2.5]
[1730655985728,0.19574976,2448.0,2447.9,2.5]
[1730655986086,0.11420229,2448.0,2447.9,6.58513]
[1730655986288,0.11420229,2448.0,2447.9,2.5]
[1730655988935,0.11420229,2448.0,2447.9,6.58513]
[1730655989097,0.11420229,2448.0,2447.9,8.450463]
[1730655996521,0.11420229,2448.0,2447.9,7.38343]
[1730656000218,0.11420229,2448.0,2447.9,2.5]
[1730656000423,5.02926229,2448.0,2447.9,2.5]
[1730656000607,6.82397891,2448.0,2447.9,2.5]
[1730656000933,10.25285501,2448.0,2447.9,2.5]
[1730656001129,12.13548988,2448.0,2447.9,2.5]
[1730656001841,8.05052988,2448.0,2447.9,2.5]
[1730656002048,6.08634754,2448.0,2447.9,2.5]
[1730656002408,5.33779501,2448.0,2447.9,2.5]
[1730656002608,4.90940062,2448.0,2447.9,2.5]
[1730656002848,3.19574976,2448.0,2447.9,2.5]
[1730656003051,3.11420229,2448.0,2447.9,2.5]
[1730656003245,1.82787272,2448.0,2447.9,2.5]
[1730656004127,0.11420229,2448.0,2447.9,2.5]
[1730656005510,1.00266162,2448.0,2447.9,2.5]
[1730656005713,2.71633205,2448.0,2447.9,2.5]
[1730656006109,6.80129205,2448.0,2447.9,2.5]
[1730656006314,6.88283952,2448.0,2447.9,2.5]
[1730656007422,6.80129205,2448.0,2447.9,2.5]
[1730656007824,6.88283952,2448.0,2447.9,2.5]
[1730656009416,6.80129205,2448.0,2447.9,2.5]
[1730656009812,6.88283952,2448.0,2447.9,2.5]
[1730656010041,6.80129205,2448.0,2447.9,2.5]
[1730656011154,2.71633205,2448.0,2447.9,2.5]
[1730656011327,1.00266162,2448.0,2447.9,2.5]
[1730656011528,2.71633205,2448.0,2447.9,2.5]
[1730656012459,1.00266162,2448.0,2447.9,2.5]
[1730656012614,0.11420229,2448.0,2447.9,2.5]
[1730656012821,1.82787272,2448.0,2447.9,2.5]
[1730656014952,0.11420229,2448.0,2447.9,2.5]
[1730656015116,1.82787272,2448.0,2447.9,2.5]
[1730656015733,1.90942019,2448.0,2447.9,2.5]
[1730656016052,2.42894599,2448.0,2447.9,2.5]
[1730656016238,2.51049346,2448.0,2447.9,2.5]
[1730656020465,1.90942019,2448.0,2447.9,2.5]
[1730656021034,1.82787272,2448.0,2447.9,2.5]
[1730656021635,1.90942019,2448.0,2447.9,2.5]
[1730656022228,1.82787272,2448.0,2447.9,2.5]
[1730656023169,1.90942019,2448.0,2447.9,2.5]
[1730656023382,1.82787272,2448.0,2447.9,2.5]
[1730656024476,0.19574976,2448.0,2447.9,2.5]
[1730656024639,1.91028866,2448.0,2447.9,2.5]
[1730656025259,1.82874119,2448.0,2447.9,2.5]
[1730656027072,1.49291434,2448.0,2447.9,2.5]
[1730656027566,5.57787434,2448.0,2447.9,2.5]
[1730656027882,7.7212189,2448.0,2447.9,2.5]
[1730656028188,9.69339003,2448.0,2447.9,2.5]
[1730656028357,7.55004547,2448.0,2447.9,2.5]
[1730656028683,7.63159294,2448.0,2447.9,2.5]
[1730656030480,7.51739065,2448.0,2447.9,2.38579771]
[1730656032153,10.08940413,2448.0,2447.9,2.38579771]
[1730656032353,10.00785666,2448.0,2447.9,2.38579771]
[1730656032764,13.00785666,2448.0,2447.9,2.38579771]
[1730656034780,10.43584318,2448.0,2447.9,2.38579771]
[1730656035595,4.0856,2447.7,2447.3,0.0604317]
[1730656035777,2.2043731,2447.6,2447.3,0.0604317]
[1730656036149,6.2901031,2447.6,2447.3,0.0604317]
[1730656036574,2.2043731,2447.6,2447.3,0.0604317]
[1730656036775,6.2900231,2447.6,2447.3,0.0604317]
[1730656037175,2.2043731,2447.6,2447.3,0.0604317]
[1730656037968,6.2901131,2447.6,2447.3,0.0604317]
[1730656038169,1.37432437,2447.5,2447.3,0.0604317]
[1730656038470,0.08154747,2447.4,2447.3,0.0604317]
[1730656039296,0.56,2447.4,2447.3,0.0604317]
[1730656040904,9.35986181,2447.4,2447.3,0.0604317]
[1730656041212,7.64596,2447.4,2447.3,0.0604317]
[1730656041532,9.2789359,2447.4,2447.3,0.0604317]
[1730656041668,11.4211263,2447.4,2447.3,0.0604317]
[1730656042014,4.5857283,2447.3,2446.8,4.88225]
[1730656042190,2.23417317,2447.2,2446.8,4.88225]
[1730656042382,3.54363625,2447.2,2446.8,4.88225]
[1730656042813,7.62993625,2447.2,2446.8,4.88225]
[1730656044003,3.54363625,2447.2,2446.8,4.88225]
[1730656044208,0.52111577,2447.2,2446.9,4.08671]
[1730656044374,0.52111577,2447.2,2446.8,4.88224]
[1730656044574,0.52111577,2447.2,2446.9,4.08679]
[1730656045277,0.4395683,2447.1,2446.8,4.88224]
[1730656045706,0.4395683,2447.1,2447.0,4.08663]
[1730656048302,0.4395683,2447.1,2447.0,7.0036206]
[1730656048510,0.4395683,2447.1,2447.0,7.08535331]
[1730656049312,0.4395683,2447.1,2447.0,5.86053471]
[1730656049520,0.4395683,2447.1,2447.0,5.778802]
[1730656050130,0.4395683,2447.1,2447.0,4.88193]
[1730656060957,0.4395683,2447.1,2447.0,6.18847447]
[1730656061118,0.4395683,2447.1,2447.0,4.88193]
[1730656061525,0.4395683,2447.1,2447.0,4.96365417]
[1730656065244,0.4395683,2447.1,2447.0,4.88193]
[1730656066560,0.4395683,2447.1,2447.0,4.96365424]
[1730656066940,0.4395683,2447.1,2447.0,4.88193]
[1730656067687,0.4395683,2447.1,2447.0,4.96365446]
[1730656067990,0.4395683,2447.1,2447.0,5.99118077]
[1730656068482,0.4395683,2447.1,2447.0,5.99118034]
[1730656071172,0.4395683,2447.1,2447.0,5.90945631]
[1730656071369,0.4395683,2447.1,2447.0,4.88193]
[1730656072606,0.4395683,2447.1,2447.0,4.96365392]
[1730656077298,0.4395683,2447.1,2447.0,4.88193]
[1730656077495,0.4395683,2447.1,2447.0,4.96365385]
[1730656078580,0.4395683,2447.1,2447.0,4.88193]
[1730656079611,0.4395683,2447.1,2447.0,4.9636538]
[1730656080631,0.4395683,2447.1,2447.0,10.76217734]
[1730656080814,0.4395683,2447.1,2447.0,5.96735874]
[1730656081000,0.4395683,2447.1,2447.0,5.06231436]
[1730656081204,0.4395683,2447.1,2447.0,4.96365353]
[1730656081398,0.4395683,2447.1,2447.0,5.14404475]
[1730656082404,0.4395683,2447.1,2447.0,6.83713982]
[1730656082805,0.4395683,2447.1,2447.0,5.61232122]
[1730656083004,0.4395683,2447.1,2447.0,6.78964439]
[1730656083606,0.4395683,2447.1,2447.0,7.49879208]
[1730656083990,0.4395683,2447.1,2447.0,6.78964439]
[1730656084196,0.4395683,2447.1,2447.0,7.49878924]
[1730656084425,0.4395683,2447.1,2447.0,8.72360784]
[1730656084625,0.4395683,2447.1,2447.0,8.72351966]
[1730656084935,0.4395683,2447.1,2447.0,8.7235527]
[1730656088408,0.4395683,2447.1,2447.0,8.01444473]
[1730656089223,1.1526257,2447.6,2447.4,4.08581]
[1730656089418,6.41454253,2447.6,2447.1,4.08635]
[1730656089648,2.89822047,2447.5,2447.1,4.08635]
[1730656089860,0.08154747,2447.4,2447.1,4.08635]
[1730656090042,2.22256794,2447.4,2447.1,4.08635]
[1730656090708,2.22256794,2447.4,2447.1,8.17274]
[1730656090912,2.96286167,2447.4,2447.1,4.08635]
[1730656091112,2.96286167,2447.4,2447.1,8.17274]
[1730656091845,2.8813142,2447.4,2447.2,4.08629]
[1730656092212,2.8813142,2447.4,2447.1,4.08635]
[1730656092615,0.83874747,2447.3,2446.6,0.7761]
[1730656092842,0.7572,2447.2,2446.8,4.08684]
[1730656093025,0.08154747,2447.1,2446.8,4.08684]
[1730656093244,0.7572,2447.0,2446.5,4.08733]
[1730656093424,0.8172,2447.0,2446.7,4.08712]
[1730656093850,0.8172,2447.0,2446.8,4.08694]
[1730656096240,1.52979706,2447.0,2446.8,4.08694]
[1730656096443,1.52979706,2447.0,2446.7,4.08712]
[1730656096745,0.06,2446.9,2446.6,8.17447]
[1730656097573,0.06,2446.9,2446.6,4.0872]
[1730656097933,0.06,2446.9,2446.6,8.17442]
[1730656098165,0.06,2446.9,2446.6,4.0872]
[1730656098366,0.7545,2446.8,2446.6,4.0872]
[1730656098546,0.8145,2446.8,2446.6,4.0872]
[1730656099539,0.06,2446.7,2446.6,4.0872]
[1730656101654,0.06,2446.7,2446.6,6.1428186]
[1730656102171,0.06,2446.7,2446.5,8.17475]
[1730656102368,0.06,2446.7,2446.6,4.0873]
[1730656103110,2.5669445,2447.7,2447.5,0.8308]
[1730656103260,4.08389,2448.7,2447.9,4.08508]
[1730656103459,4.08389,2448.7,2447.7,0.8308]
[1730656103460,0.7545,2448.4,2447.7,0.8308]
[1730656103660,0.48387,2448.3,2447.8,4.08521]
[1730656103889,0.48387,2448.3,2448.0,4.08494]
[1730656104496,0.7545,2448.8,2448.3,4.08446]
[1730656104860,0.7545,2448.8,2448.3,8.16883]
[1730656105273,0.7545,2448.8,2448.3,4.08437]
[1730656105506,0.7545,2448.8,2448.3,8.16873]
[1730656105707,0.7545,2448.8,2448.1,1.2248186]
[1730656105972,5.3088286,2448.6,2448.0,4.08494]
[1730656106172,0.53088286,2448.5,2448.0,4.08494]
[1730656106708,0.53088286,2448.5,2448.1,4.08477]
[1730656106906,0.53088286,2448.5,2448.1,8.16947]
[1730656107114,0.53088286,2448.5,2448.1,4.0847]
[1730656107797,0.53088286,2448.5,2448.1,4.08465]
[1730656107997,0.46148929,2448.4,2448.1,4.08465]
[1730656108200,0.46148929,2448.4,2448.1,8.16935]
[1730656108510,0.46148929,2448.4,2448.1,8.16936]
[1730656108912,0.46148929,2448.4,2448.1,4.08465]
[1730656109997,0.46148929,2448.4,2448.1,8.16932]
[1730656110379,0.46148929,2448.4,2448.1,4.08465]
[1730656110620,0.46148929,2448.4,2448.1,8.16936]
[1730656110782,0.46148929,2448.4,2448.1,4.08465]
[1730656110981,0.46148929,2448.4,2448.1,8.16936]
[1730656111335,0.7545,2448.8,2448.4,4.08427]
[1730656111823,0.7545,2448.8,2448.4,8.16844]
[1730656112414,0.7545,2448.8,2448.4,4.08417]
[1730656113146,0.8165,2449.1,2448.6,4.08396]
[1730656113343,0.8165,2449.1,2448.7,4.08367]
[1730656114236,0.8165,2449.1,2448.9,4.08343]
[1730656114748,0.8165,2449.4,2448.9,4.08333]
[1730656114961,1.714648,2449.4,2449.0,4.08321]
[1730656115280,1.714648,2449.4,2449.1,4.08299]
[1730656115281,0.8165,2449.4,2449.1,4.08299]
[1730656115743,0.8165,2449.4,2449.2,4.08293]
[1730656115949,0.8165,2449.4,2449.1,4.08299]
[1730656117372,0.8165,2449.6,2449.1,8.16602]
[1730656118056,0.8165,2449.6,2449.1,4.08299]
[1730656118256,5.388707,2449.6,2449.1,8.16602]
[1730656118654,0.8165,2449.6,2449.3,4.08279]
[1730656119160,0.8165,2449.6,2449.3,4.08268]
[1730656119472,0.8165,2449.6,2449.1,4.08305]
[1730656119675,0.8165,2449.6,2449.2,4.08296]
[1730656119847,0.8165,2449.6,2449.3,4.08276]
[1730656120755,0.8165,2449.6,2449.2,4.08296]
[1730656120983,3.8165,2449.3,2448.7,1.0]
[1730656121160,4.08321,2449.1,2448.7,1.0]
[1730656121478,4.90013,2448.8,2448.7,1.0]
[1730656121978,0.8165,2448.8,2448.7,1.0]
[1730656123174,4.90013,2448.8,2448.7,1.0]
[1730656125938,4.08348,2448.9,2448.7,1.0]
[1730656128944,0.8165,2449.0,2448.7,1.0]
[1730656129140,4.89981,2449.0,2448.7,1.0]
[1730656132301,4.08347,2448.9,2448.7,1.0]
[1730656132964,4.08363,2448.8,2448.7,1.0]
[1730656134175,4.981792,2448.9,2448.7,1.0]
[1730656134381,4.08347,2448.9,2448.7,1.0]
[1730656144922,4.08316,2449.1,2448.7,1.0]
[1730656145434,4.08331,2449.0,2448.7,1.0]
[1730656147598,4.08347,2448.9,2448.7,1.0]
[1730656148601,4.08363,2448.8,2448.7,1.0]
[1730656148803,5.72214,2448.8,2448.7,1.0]
[1730656149195,7.63418188,2448.8,2448.7,1.0]
[1730656149521,11.45598188,2448.8,2448.7,1.0]
[1730656152039,11.46598188,2448.8,2448.7,1.0]
[1730656152828,14.03392272,2448.8,2448.7,1.0]
[1730656153192,11.46598188,2448.8,2448.7,1.0]
[1730656153942,11.46598188,2448.8,2448.7,0.69618758]
[1730656154251,14.46211554,2448.8,2448.7,7.58e-06]
[1730656154437,11.46598188,2448.8,2448.7,7.58e-06]
[1730656154619,12.01598188,2448.8,2448.7,7.58e-06]
[1730656156056,11.46598188,2448.8,2448.7,7.58e-06]
[1730656160053,14.03061586,2448.8,2448.7,7.58e-06]
[1730656163275,15.00842062,2448.8,2448.7,7.58e-06]
[1730656163859,15.0073497,2448.8,2448.7,7.58e-06]
[1730656164263,12.01598188,2448.8,2448.7,7.58e-06]
[1730656164441,15.00715156,2448.8,2448.7,7.58e-06]
[1730656164775,15.00718843,2448.8,2448.7,7.58e-06]
[1730656165834,12.01598188,2448.8,2448.7,7.58e-06]
[1730656166036,15.00713905,2448.8,2448.7,7.58e-06]
[1730656166446,15.00739172,2448.8,2448.7,7.58e-06]
[1730656166861,12.01598188,2448.8,2448.7,7.58e-06]
[1730656167677,15.00705287,2448.8,2448.7,7.58e-06]
[1730656167986,15.00680548,2448.8,2448.7,7.58e-06]
[1730656168132,15.07758736,2448.8,2448.7,7.58e-06]
[1730656168558,12.08676376,2448.8,2448.7,7.58e-06]
[1730656169183,15.07656065,2448.8,2448.7,7.58e-06]
[1730656169683,4.0853,2447.8,2447.7,0.757]
[1730656170242,4.0853,2447.8,2447.0,4.08647]
[1730656170447,6.81864188,2448.1,2447.0,4.08647]
[1730656170448,4.08596,2447.5,2447.1,0.408647]
[1730656170680,4.08596,2447.5,2447.2,0.757]
[1730656170883,4.0859,2447.5,2447.2,0.757]
[1730656171193,8.17183,2447.5,2447.2,0.757]
[1730656171356,4.0859,2447.5,2447.2,0.757]
[1730656172948,8.17184,2447.5,2447.2,0.757]
[1730656173283,4.0859,2447.5,2447.2,0.757]
[1730656173657,8.17185,2447.5,2447.2,0.757]
[1730656173864,4.08613,2447.3,2447.2,0.757]
[1730656175172,4.08597,2447.4,2446.7,0.8246]
[1730656175373,2.73384188,2447.5,2446.7,0.8246]
[1730656175374,4.08655,2447.1,2446.7,0.8246]
[1730656176050,4.08655,2447.1,2446.8,0.8246]
[1730656176398,4.08615,2447.3,2446.9,0.8246]
[1730656176565,4.08615,2447.3,2447.0,0.8246]
[1730656176898,4.08613,2447.3,2447.0,0.8246]
[1730656177271,3.0,2447.7,2447.0,0.8246]
[1730656177472,4.08581,2447.5,2447.0,4.08652]
[1730656177679,4.08581,2447.5,2447.2,0.8246]
[1730656177990,4.08605,2447.4,2447.2,0.8246]
[1730656178361,4.08582,2447.5,2447.2,0.8246]
[1730656179298,4.08559,2447.7,2447.3,0.8246]
[1730656179602,4.08566,2447.6,2447.4,0.491087]
[1730656179901,4.08566,2447.6,2447.3,0.8246]
[1730656181193,4.08453,2448.3,2447.8,0.8246]
[1730656181372,4.08437,2448.4,2448.0,0.8246]
[1730656181572,4.08447,2448.3,2448.0,0.8246]
[1730656182002,0.01,2448.9,2448.2,0.8246]
[1730656182003,4.08399,2448.6,2448.2,0.8246]
[1730656182288,4.08389,2448.7,2448.3,0.8246]
[1730656182467,0.7753,2449.0,2448.3,0.8246]
[1730656182792,4.08406,2448.6,2448.3,0.8246]
[1730656183610,8.16755,2448.8,2448.3,0.8246]
[1730656183768,7.08387,2448.7,2448.3,0.8246]
[1730656184384,4.08397,2448.6,2448.3,0.8246]
[1730656186928,4.08422,2448.5,2448.3,0.8246]
[1730656187137,4.08397,2448.6,2448.3,0.8246]
[1730656187335,4.08413,2448.5,2448.3,0.8246]
[1730656187694,4.08397,2448.6,2448.3,0.8246]
[1730656187695,8.16802,2448.6,2448.3,0.8246]
[1730656188059,8.16803,2448.6,2448.3,0.8246]
[1730656188343,4.08419,2448.5,2448.3,0.8246]
[1730656189102,8.16844,2448.5,2448.3,0.8246]
[1730656189303,4.08419,2448.5,2448.3,0.8246]
[1730656191055,4.08397,2448.6,2448.3,0.8246]
[1730656193354,6.21941214,2448.8,2448.4,0.7875]
[1730656193509,4.08382,2448.7,2448.4,0.7875]
[1730656194323,10.30282214,2448.9,2448.4,4.8717]
[1730656194635,10.30282214,2448.9,2448.5,0.7875]
[1730656194636,4.08364,2448.8,2448.5,0.7875]
[1730656195219,10.30284214,2448.9,2448.5,0.7875]
[1730656195415,4.0837,2448.8,2448.5,0.7875]
[1730656196974,4.08461,2448.3,2447.8,0.7875]
[1730656197125,4.08469,2448.2,2447.8,0.7875]
[1730656197324,2.13577214,2448.5,2447.8,0.7875]
[1730656197325,6.21998214,2448.5,2447.8,0.7875]
[1730656197519,4.08421,2448.5,2448.0,0.7875]
[1730656197765,8.16843,2448.5,2448.0,0.7875]
[1730656197940,8.16843,2448.5,2448.0,4.87245]
[1730656198264,4.08421,2448.5,2448.0,4.87245]
[1730656198468,4.08421,2448.5,2448.0,0.7875]
[1730656198661,4.08433,2448.4,2448.0,0.7875]
[1730656199081,8.1685,2448.5,2448.0,4.87243]
[1730656199368,4.08421,2448.5,2448.0,4.87243]
[1730656200340,8.16843,2448.5,2448.0,4.87243]
[1730656200539,4.08421,2448.5,2448.0,4.87243]
[1730656200743,6.21968214,2448.7,2448.2,4.08449]
[1730656201071,4.08439,2448.4,2448.2,0.7875]
[1730656202658,2.73384188,2448.3,2447.7,0.7875]
[1730656202893,4.08499,2448.0,2447.7,0.7875]
[1730656203062,4.08514,2447.9,2447.7,0.7875]
[1730656203373,2.73384188,2448.3,2447.7,0.7875]
[1730656203374,4.08504,2448.0,2447.7,0.7875]
[1730656203587,4.08475,2448.2,2447.7,0.7875]
[1730656203763,4.08481,2448.1,2447.7,0.7875]
[1730656204516,4.08454,2448.3,2447.7,4.58091818]
[1730656204815,4.08463,2448.2,2447.8,4.92559175]
[1730656206538,4.0844,2448.4,2447.8,4.92559175]
[1730656206838,4.08446,2448.3,2447.8,4.92559175]
[1730656207128,4.08446,2448.3,2447.9,4.84381]
[1730656208000,4.08446,2448.3,2447.9,0.7587]
[1730656208432,3.0,2448.6,2448.0,0.84039645]
[1730656208632,4.08442,2448.4,2448.1,0.7587]
[1730656208799,4.08454,2448.3,2448.1,0.7587]
[1730656209506,4.08439,2448.4,2448.1,0.7587]
[1730656209906,4.08446,2448.3,2448.1,0.7587]
[1730656211840,4.08456,2448.3,2448.1,0.7587]
[1730656212025,4.08456,2448.3,2447.9,0.7587]
[1730656212026,4.08488,2448.1,2447.9,0.7587]
[1730656213642,2.13423357,2448.7,2448.0,0.08170016]
[1730656213826,4.08355,2448.9,2448.5,0.7587]
[1730656214037,4.08355,2448.9,2448.5,1.651427]
[1730656214217,4.08355,2448.9,2448.5,0.7587]
[1730656214547,4.08331,2449.0,2448.5,4.84275]
[1730656214708,4.08331,2449.0,2448.6,0.7587]
[1730656215121,5.89177482,2449.2,2448.6,0.7587]
[1730656215328,4.08329,2449.0,2448.6,0.7587]
[1730656217306,4.08329,2449.0,2448.6,1.651408]
[1730656217507,4.08347,2448.9,2448.6,0.7587]
[1730656218243,4.08366,2448.8,2448.6,0.7587]
[1730656218410,4.08347,2448.9,2448.6,0.7587]
[1730656221877,4.08456,2448.3,2447.9,0.8163]
[1730656222166,4.08489,2448.1,2447.9,0.8163]
[1730656222370,4.08496,2448.0,2447.5,4.98371038]
[1730656222522,4.08489,2448.1,2447.5,4.98369038]
[1730656223119,4.08489,2448.1,2447.6,4.08563]
[1730656223466,4.08457,2448.3,2447.7,4.90169]
[1730656223467,4.08472,2448.2,2447.7,4.90169]
[1730656223759,4.08472,2448.2,2447.7,4.98339342]
[1730656225420,4.08481,2448.1,2447.7,0.89800342]
[1730656225859,6.21824857,2448.3,2447.7,4.98344342]
[1730656226067,4.08479,2448.2,2447.7,4.98344342]
[1730656226360,4.08479,2448.2,2447.7,0.8163]
[1730656226361,4.08514,2447.9,2447.7,0.8163]
[1730656226560,4.0853,2447.8,2447.7,0.8163]
[1730656226735,4.08553,2447.7,2447.5,0.8163]
[1730656229495,8.17113,2447.7,2447.4,1.0]
[1730656229769,4.08553,2447.7,2447.4,1.0]
[1730656230365,8.17111,2447.7,2447.4,1.0]
[1730656230569,4.08553,2447.7,2447.4,1.0]
[1730656230965,8.17111,2447.7,2447.4,1.0]
[1730656231271,4.08553,2447.7,2447.4,1.0]
[1730656231564,4.08533,2447.8,2447.4,1.0]
[1730656232744,4.08543,2447.8,2447.4,1.0]
[1730656234035,4.08523,2447.9,2447.4,5.08593]
[1730656234469,8.17044,2447.9,2447.4,5.08593]
[1730656234834,4.0853,2447.8,2447.4,1.0]
[1730656236429,4.0848,2448.1,2447.5,4.16736138]
[1730656236646,7.08496,2448.0,2447.7,0.5]
[1730656237669,4.08496,2448.0,2447.7,0.5]
[1730656238368,2.13580477,2448.3,2448.0,0.7676]
[1730656238666,2.13580477,2448.3,2448.2,4.85223]
[1730656238868,2.13580477,2448.3,2448.2,5.75409267]
[1730656239641,2.99012668,2448.7,2448.2,5.75409267]
[1730656239847,8.1675,2448.8,2448.2,5.75409267]
[1730656239848,8.1675,2448.8,2448.3,0.08168055]
[1730656240728,4.08374,2448.8,2448.3,4.16605055]
[1730656240945,8.16684,2449.0,2448.5,4.08411]
[1730656241168,4.08341,2449.0,2448.5,4.16578588]
[1730656241370,4.08341,2449.0,2448.5,4.16571588]
[1730656241670,4.08341,2449.0,2448.7,0.7676]
[1730656242561,4.08363,2448.8,2448.3,4.08434]
[1730656242783,6.81727188,2449.0,2448.5,0.7676]
[1730656243073,4.08343,2449.0,2448.5,4.8517]
[1730656243669,4.08343,2449.0,2448.5,0.7676]
[1730656243874,4.08347,2448.9,2448.5,0.7676]
[1730656246513,4.08347,2448.9,2448.3,4.0843]
[1730656246514,2.73384188,2448.6,2447.9,0.7676]
[1730656246737,4.08448,2448.3,2447.9,4.85272]
[1730656247001,4.08431,2448.4,2447.9,4.85272]
[1730656248397,4.08457,2448.3,2447.9,0.7676]
[1730656248768,8.16912,2448.3,2447.9,0.7676]
[1730656248969,4.08455,2448.3,2447.9,0.7676]
[1730656250274,6.50884188,2448.9,2447.9,1.86958698]
[1730656250477,4.08425,2448.5,2448.1,0.8303]
[1730656251565,4.08425,2448.5,2448.1,4.91507]
[1730656251797,3.0,2448.6,2448.1,4.91507]
[1730656251980,7.08397,2448.6,2448.1,4.91507]
[1730656252467,7.08397,2448.6,2448.2,0.08168324]
[1730656253180,7.08397,2448.6,2448.1,4.91507]
[1730656254277,4.08397,2448.6,2448.2,0.08168325]
[1730656255010,4.08391,2448.7,2448.2,4.16622325]
[1730656255413,8.16783,2448.7,2448.2,4.16622325]
[1730656256495,4.08391,2448.7,2448.2,0.08168325]
[1730656256701,4.084,2448.6,2448.2,0.08168325]
[1730656261394,4.08391,2448.7,2448.1,4.91499]
[1730656261395,4.08415,2448.5,2448.1,4.91499]
[1730656261997,4.08397,2448.6,2448.2,0.08168329]
[1730656262196,4.08391,2448.7,2448.2,4.16623329]
[1730656262977,6.21927399,2448.9,2448.4,0.8303]
[1730656263214,2.13567399,2449.0,2448.4,0.8303]
[1730656263418,4.08389,2448.7,2448.4,0.8303]
[1730656264895,4.08432,2448.4,2448.2,0.8303]
[1730656265091,2.73384188,2448.6,2448.2,0.8303]
[1730656265092,4.08423,2448.5,2448.2,0.8303]
[1730656268334,4.08421,2448.5,2448.2,0.8303]
[1730656268499,4.0844,2448.4,2447.9,4.91531]
[1730656268835,4.572681,2448.5,2448.0,4.08488]
[1730656269041,8.16844,2448.5,2448.0,4.08488]
[1730656269331,4.08421,2448.5,2448.0,4.08488]
[1730656269524,4.08421,2448.5,2448.1,0.08168783]
[1730656269835,4.08429,2448.4,2447.9,4.91541]
[1730656270032,4.08429,2448.4,2447.9,0.8303]
[1730656270365,4.08455,2448.3,2447.9,0.8303]
[1730656270653,4.08455,2448.3,2447.9,4.91542]
[1730656270801,4.08429,2448.4,2447.9,4.91542]
[1730656271636,8.16874,2448.4,2447.9,4.91542]
[1730656272006,4.08429,2448.4,2447.9,4.91542]
[1730656272211,4.08429,2448.4,2448.0,4.08493]
[1730656272826,4.08429,2448.4,2447.9,4.91542]
[1730656273139,3.08429,2448.4,2447.9,4.91542]
[1730656273297,4.08446,2448.3,2447.9,4.91542]
[1730656275364,8.16844,2448.5,2447.9,9.00043]
[1730656275517,4.08446,2448.3,2447.9,4.91531]
[1730656275869,4.08446,2448.3,2447.7,3.3303]
[1730656275870,4.08496,2448.0,2447.7,3.3303]
[1730656276156,4.08496,2448.0,2447.7,2.5]
[1730656276157,4.0853,2447.8,2447.7,2.5]
[1730656276341,3.53434188,2448.0,2447.7,2.5]
[1730656276660,8.1705,2447.9,2447.7,2.5]
[1730656277147,4.08522,2447.9,2447.7,2.5]
[1730656277897,4.08501,2448.0,2447.7,2.5]
[1730656278038,2.13525126,2448.2,2447.8,4.08521]
[1730656278245,4.08451,2448.3,2447.9,1.905535]
[1730656278714,4.08451,2448.3,2447.9,0.8303]
[1730656279052,4.08474,2448.2,2447.9,0.8303]
[1730656281257,10.30533686,2448.4,2447.9,4.91542]
[1730656281458,4.08459,2448.3,2447.9,0.8303]
[1730656282243,10.30530686,2448.4,2447.9,6.07365364]
[1730656282751,4.08449,2448.3,2447.9,1.98856364]
[1730656283580,4.08449,2448.3,2447.9,6.1553567]
[1730656283980,4.08449,2448.3,2447.9,6.07366364]
[1730656284172,4.08449,2448.3,2447.9,1.98856364]
[1730656285280,6.22091686,2448.4,2448.0,0.60737836]
[1730656285281,2.13659686,2448.4,2448.0,0.60737836]
[1730656285487,2.13659686,2448.5,2448.3,0.8033]
[1730656285670,4.08417,2448.5,2448.3,0.8033]
[1730656286993,6.22063686,2448.6,2448.3,0.8033]
[1730656287280,6.22057686,2448.6,2448.3,0.8033]
[1730656287459,10.30466686,2448.6,2448.3,0.8033]
[1730656287657,10.30624859,2448.6,2448.3,0.8033]
[1730656288060,6.22215859,2448.6,2448.3,0.8033]
[1730656288688,10.30623859,2448.6,2448.3,0.8033]
[1730656288895,10.30625859,2448.6,2448.3,0.8033]
[1730656290083,6.22215859,2448.6,2448.3,0.8033]
[1730656290285,6.22215859,2448.6,2448.3,1.2921]
[1730656290487,4.08398,2448.6,2448.3,1.2921]
[1730656290989,8.16804,2448.6,2448.3,1.2921]
[1730656292054,4.08398,2448.6,2448.3,1.2921]
[1730656292254,6.22387707,2448.7,2448.3,5.37654]
[1730656292486,6.22387707,2448.7,2448.4,0.537654]
[1730656294315,6.22387707,2448.7,2448.3,1.37377919]
[1730656294907,2.14003707,2448.7,2448.3,1.37377919]
[1730656295218,6.22384707,2448.7,2448.3,0.8033]
[1730656295398,6.22384707,2448.7,2448.3,4.88767]